bitfinex/quotes_ETHUSD_20230111
["timestamp","ask_amount","ask_price","bid_price","bid_amount"]
[1673452812990,51.3477832,1323.1,1322.7,10.38930605]
[1673452813337,1.369,1323.0,1322.8,1.8754076]
[1673452813553,8.92763,1323.0,1322.8,1.8754076]
[1673452813777,1.435,1323.0,1322.7,26.08519736]
[1673452814086,44.9070951,1323.1,1322.7,23.87790629]
[1673452814491,2.5,1323.0,1322.7,23.87790629]
[1673452814704,14.79932951,1323.0,1322.7,23.87790629]
[1673452814919,12.36532951,1323.0,1322.8,1.87542972]
[1673452815235,12.36532951,1323.0,1322.7,23.87790629]
[1673452815404,12.36532951,1323.0,1322.8,1.87540348]
[1673452815620,4.80670951,1323.0,1322.8,1.87540348]
[1673452815879,20.60184384,1323.1,1322.8,20.79238412]
[1673452816053,20.60184384,1323.1,1322.8,26.54270064]
[1673452816409,20.60184384,1323.1,1322.8,27.67442693]
[1673452817028,20.60184384,1323.1,1322.8,26.54270064]
[1673452818748,28.15987384,1323.1,1322.8,26.54270064]
[1673452819083,26.1599042,1323.1,1322.8,18.98298064]
[1673452819232,41.2761642,1323.1,1322.8,7.6256]
[1673452819443,48.8342942,1323.1,1322.8,0.066]
[1673452819657,48.8342942,1323.1,1322.8,3.0]
[1673452820299,48.8342942,1323.1,1322.8,10.55968]
[1673452820511,33.7180342,1323.1,1322.8,18.1854]
[1673452820757,41.2760342,1323.1,1322.8,10.62568]
[1673452821368,41.2760342,1323.1,1322.8,10.6257]
[1673452821778,48.8339042,1323.1,1322.8,3.066]
[1673452822001,48.8339042,1323.1,1322.8,3.0]
[1673452822592,41.2759042,1323.1,1322.8,3.0]
[1673452822863,41.2759042,1323.1,1322.8,10.55968]
[1673452823080,41.2759042,1323.1,1322.8,10.62568]
[1673452823242,33.7179042,1323.1,1322.8,10.62568]
[1673452823441,1.362,1323.0,1322.8,10.62568]
[1673452823656,1.362,1323.0,1322.8,3.03131459]
[1673452823889,13.94030042,1323.0,1322.8,2.96531459]
[1673452824102,14.00630042,1323.0,1322.8,2.96531459]
[1673452824812,6.44764042,1323.0,1322.8,2.96531459]
[1673452825158,1.366,1322.9,1322.8,2.96531459]
[1673452825332,1.366,1322.9,1322.8,12.40047134]
[1673452825545,1.366,1322.9,1322.8,12.46647134]
[1673452825999,1.366,1322.9,1322.8,4.90676134]
[1673452826203,1.366,1322.9,1322.8,4.84076134]
[1673452826397,1.366,1322.9,1322.8,12.40048134]
[1673452826619,7.62473,1323.0,1322.8,4.90676134]
[1673452826868,8.92815,1322.9,1322.7,3.40501736]
[1673452827074,1.363,1322.8,1322.6,16.31909629]
[1673452827389,1.363,1322.8,1322.6,8.75839629]
[1673452827981,1.363,1322.8,1322.6,7.62667]
[1673452830094,1.363,1322.8,1322.6,15.18753]
[1673452830279,1.56403626,1322.8,1322.6,23.88011629]
[1673452830508,1.363,1322.8,1322.7,9.43585926]
[1673452830694,1.363,1322.8,1322.7,1.94156926]
[1673452830955,1.363,1322.8,1322.7,1.87556926]
[1673452831324,1.363,1322.8,1322.6,16.31895629]
[1673452831535,1.363,1322.8,1322.6,8.75828629]
[1673452831819,3.07590426,1322.8,1322.6,8.75828629]
[1673452831987,3.07590426,1322.8,1322.6,15.18742]
[1673452832196,3.07590426,1322.8,1322.6,16.31914629]
[1673452832639,3.07590426,1322.8,1322.6,8.75828629]
[1673452832800,3.07590426,1322.8,1322.7,1.87559921]
[1673452833354,3.07590426,1322.8,1322.7,1.87560634]
[1673452833568,1.363,1322.8,1322.7,9.43589634]
[1673452833891,1.363,1322.8,1322.7,1.94160634]
[1673452834110,1.363,1322.8,1322.7,9.43589634]
[1673452834283,1.363,1322.8,1322.7,9.50189634]
[1673452834492,1.38336261,1322.9,1322.7,9.50189634]
[1673452834847,5.1019278,1322.9,1322.7,7.62629]
[1673452835151,5.1679278,1322.9,1322.7,7.62629]
[1673452835367,5.1679278,1322.9,1322.7,8.75801629]
[1673452835604,1.435,1322.9,1322.7,8.75801629]
[1673452835788,11.6769,1323.0,1322.8,1.87548249]
[1673452835789,18.73467,1323.0,1322.8,1.87548249]
[1673452836010,18.73467,1323.0,1322.7,1.19772629]
[1673452836011,15.1183,1322.9,1322.7,1.19772629]
[1673452836308,1.362,1322.8,1322.6,17.95042605]
[1673452836524,1.362,1322.8,1322.7,1.8755503]
[1673452836679,20.35062,1322.8,1322.6,2.27329107]
[1673452836896,1.356,1322.7,1322.5,12.66364712]
[1673452837133,1.356,1322.7,1322.6,1.87571315]
[1673452837421,10.12595,1322.8,1322.6,1.87571315]
[1673452837663,10.90215189,1322.8,1322.6,3.00743944]
[1673452837881,10.90215189,1322.8,1322.5,18.52718736]
[1673452838046,10.90215189,1322.8,1322.6,1.87575881]
[1673452838600,3.34220189,1322.8,1322.6,1.87575881]
[1673452838818,3.27620189,1322.8,1322.6,1.87575881]
[1673452839644,3.27620189,1322.8,1322.6,9.43657881]
[1673452839856,7.83549703,1322.9,1322.6,22.74854]
[1673452840083,7.83549703,1322.9,1322.6,15.18768]
[1673452840277,22.95393703,1322.9,1322.6,7.62682]
[1673452840498,14.02871703,1322.9,1322.6,15.18768]
[1673452840722,14.02871703,1322.9,1322.6,7.62682]
[1673452840889,14.02871703,1322.9,1322.6,8.75854629]
[1673452841360,6.46949703,1322.9,1322.6,16.31940629]
[1673452841568,14.02866703,1322.9,1322.6,16.31940629]
[1673452841776,29.14710703,1322.9,1322.6,1.19772629]
[1673452841957,29.14710703,1322.9,1322.5,27.78592712]
[1673452842168,28.58010703,1322.9,1322.6,1.87569492]
[1673452842491,35.92458669,1322.9,1322.6,1.87569492]
[1673452842719,35.92458669,1322.9,1322.5,3.40501736]
[1673452842720,31.06253893,1322.9,1322.5,3.40501736]
[1673452842917,7.56029,1322.7,1322.6,1.8757675]
[1673452843136,10.144292,1322.7,1322.6,1.8757675]
[1673452843308,2.584002,1322.7,1322.6,1.8757675]
[1673452843528,2.518002,1322.7,1322.6,1.8757675]
[1673452845419,2.518002,1322.7,1322.5,18.52777736]
[1673452845675,12.4958,1322.8,1322.6,1.87574349]
[1673452845861,17.55562,1322.8,1322.6,1.87574349]
[1673452846674,25.11544,1322.8,1322.6,1.87574349]
[1673452846942,2.5,1322.7,1322.5,1.19772629]
[1673452847165,0.00267808,1322.6,1322.5,3.00748467]
[1673452847328,0.00267808,1322.6,1322.5,5.21477574]
[1673452847691,0.00267808,1322.6,1322.5,12.84220574]
[1673452848522,0.00267808,1322.6,1322.5,5.28077574]
[1673452848696,0.00267808,1322.6,1322.5,3.07348467]
[1673452848901,0.00267808,1322.6,1322.5,20.33763574]
[1673452849170,0.00267808,1322.6,1322.5,20.40363574]
[1673452849858,0.00267808,1322.6,1322.5,12.84220574]
[1673452850801,0.00267808,1322.6,1322.5,27.45543443]
[1673452851017,0.00267808,1322.6,1322.5,29.6627255]
[1673452851427,0.00267808,1322.6,1322.5,20.40363574]
[1673452851883,0.00267808,1322.6,1322.5,12.84220574]
[1673452852083,0.00267808,1322.6,1322.5,5.28077574]
[1673452852432,0.00267808,1322.6,1322.5,12.84220574]
[1673452852791,0.00267808,1322.6,1322.5,5.28077574]
[1673452853632,2.10867808,1322.6,1322.5,5.28077574]
[1673452854533,2.10867808,1322.6,1322.5,10.63491467]
[1673452854690,0.00267808,1322.6,1322.5,3.07348467]
[1673452854903,0.00267808,1322.6,1322.5,3.00748467]
[1673452855102,0.00267808,1322.6,1322.5,10.56891467]
[1673452855487,0.00267808,1322.6,1322.5,10.63491467]
[1673452855997,0.00267808,1322.6,1322.5,3.07348467]
[1673452856159,0.00267808,1322.6,1322.5,10.56891467]
[1673452856370,0.00267808,1322.6,1322.5,3.07348467]
[1673452856617,0.00267808,1322.6,1322.5,3.00748467]
[1673452856944,0.00267808,1322.6,1322.5,30.56891467]
[1673452857154,0.00267808,1322.6,1322.5,32.84220574]
[1673452857335,0.00267808,1322.6,1322.5,40.40363574]
[1673452857529,0.00267808,1322.6,1322.5,32.84220574]
[1673452857732,0.00267808,1322.6,1322.5,25.28077574]
[1673452859628,0.00267808,1322.6,1322.5,45.28077574]
[1673452860415,0.00267808,1322.6,1322.5,54.5398655]
[1673452860940,0.00267808,1322.6,1322.5,46.9784355]
[1673452861254,0.00267808,1322.6,1322.5,68.53099921]
[1673452861563,0.00267808,1322.6,1322.5,69.66301212]
[1673452861779,0.00267808,1322.6,1322.5,54.54015212]
[1673452863156,0.00267808,1322.6,1322.5,52.84249236]
[1673452863315,2.10867808,1322.6,1322.5,45.28106236]
[1673452863525,27.59496261,1322.8,1322.5,45.28106236]
[1673452863526,7.56034,1322.7,1322.5,45.28106236]
[1673452863737,7.56086,1322.6,1322.5,40.066]
[1673452863947,7.56086,1322.6,1322.5,44.21372083]
[1673452863948,15.18772,1322.6,1322.5,44.21372083]
[1673452864262,15.18772,1322.6,1322.5,24.21324942]
[1673452864481,15.18772,1322.6,1322.5,21.94189694]
[1673452864725,17.94577903,1322.6,1322.5,21.94189694]
[1673452865362,2.82405903,1322.6,1322.5,21.94189694]
[1673452865578,15.12172,1322.6,1322.5,21.94189694]
[1673452865766,7.62686,1322.6,1322.5,21.94189694]
[1673452867355,7.62686,1322.6,1322.5,21.93989694]
[1673452867675,7.62686,1322.6,1322.5,21.94189694]
[1673452869510,7.62686,1322.6,1322.5,21.9395444]
[1673452869719,10.38636929,1322.6,1322.5,21.9395444]
[1673452871416,10.38636929,1322.6,1322.5,20.06364746]
[1673452871650,10.38636929,1322.6,1322.5,21.93956842]
[1673452871826,2.82550929,1322.6,1322.5,21.93956842]
[1673452872177,2.75950929,1322.6,1322.5,21.93956842]
[1673452872396,20.03423287,1322.7,1322.5,21.93956842]
[1673452872558,20.03423287,1322.7,1322.5,20.06364746]
[1673452873351,27.59487287,1322.7,1322.5,20.06364746]
[1673452878549,28.70830477,1322.7,1322.5,20.06364746]
[1673452878889,27.59487287,1322.7,1322.5,20.06364746]
[1673452879750,27.59487287,1322.7,1322.5,20.07954706]
[1673452881229,26.22587287,1322.7,1322.5,20.07954706]
[1673452881599,18.66520287,1322.7,1322.5,20.07954706]
[1673452882433,0.6331,1322.7,1322.5,28.77292997]
[1673452882686,7.56046,1322.7,1322.5,20.07954706]
[1673452882896,22.74738,1322.7,1322.5,20.07954706]
[1673452883113,15.18692,1322.7,1322.5,20.07954706]
[1673452883480,7.62646,1322.7,1322.5,20.07954706]
[1673452883956,0.066,1322.7,1322.5,20.07954706]
[1673452884169,30.5629,1322.8,1322.6,1.87579093]
[1673452884500,30.5629,1322.8,1322.6,9.43660093]
[1673452884658,9.9958,1322.8,1322.6,7.62681]
[1673452885086,17.55553,1322.8,1322.6,0.066]
[1673452885423,17.55553,1322.8,1322.6,4.14698007]
[1673452885602,17.55553,1322.8,1322.6,19.26856007]
[1673452885603,0.066,1322.8,1322.6,19.26856007]
[1673452885797,51.3484319,1322.9,1322.6,17.45881187]
[1673452886013,51.3484319,1322.9,1322.6,2.33723187]
[1673452886014,66.4673319,1322.9,1322.6,2.33723187]
[1673452886219,15.11944,1322.8,1322.5,23.48279184]
[1673452886474,7.62572,1322.8,1322.6,1.87577673]
[1673452886688,30.28379551,1322.8,1322.5,27.28045248]
[1673452886883,15.18544,1322.8,1322.5,27.28045248]
[1673452888141,15.18544,1322.8,1322.5,34.84163248]
[1673452888462,15.18544,1322.8,1322.6,1.87580047]
[1673452889088,7.62572,1322.8,1322.6,1.87580047]
[1673452890274,8.7391519,1322.8,1322.5,46.5607577]
[1673452890488,9.26816215,1322.8,1322.5,46.5607577]
[1673452890700,8.7391519,1322.8,1322.5,47.69277061]
[1673452890905,0.066,1322.8,1322.6,1.87579861]
[1673452891097,75.14386615,1322.9,1322.6,4.14721685]
[1673452891309,73.47417451,1322.9,1322.6,4.14721685]
[1673452891663,79.29746383,1322.9,1322.6,4.14721685]
[1673452892515,7.56029,1322.7,1322.5,23.48297821]
[1673452892726,7.62629,1322.7,1322.6,1.87575661]
[1673452892904,7.62360151,1322.7,1322.6,1.87575661]
[1673452893251,0.066,1322.7,1322.6,1.87575661]
[1673452893467,25.81305,1322.8,1322.6,1.87575661]
[1673452893682,33.35168551,1322.8,1322.6,1.87575661]
[1673452893992,34.46511741,1322.8,1322.5,23.48297821]
[1673452894158,26.9264819,1322.8,1322.5,23.48297821]
[1673452894727,10.6929,1322.8,1322.6,1.87579486]
[1673452894944,18.25298,1322.8,1322.6,1.87579486]
[1673452895113,25.81306,1322.8,1322.6,1.87579486]
[1673452895323,32.14587223,1322.8,1322.6,1.87579486]
[1673452895972,24.58579223,1322.8,1322.6,1.87579486]
[1673452896210,32.14551223,1322.8,1322.6,1.87579486]
[1673452896836,33.25894413,1322.8,1322.6,1.87579486]
[1673452897156,33.25894413,1322.8,1322.5,23.48297821]
[1673452897350,33.25894413,1322.8,1322.6,1.87581105]
[1673452897756,32.14515223,1322.8,1322.6,1.87581105]
[1673452897966,18.25254,1322.8,1322.6,1.87581105]
[1673452898398,25.81226,1322.8,1322.6,1.87581105]
[1673452899533,26.9256919,1322.8,1322.5,22.3509653]
[1673452899791,27.45952435,1322.8,1322.5,20.07954706]
[1673452899954,27.45952435,1322.8,1322.5,22.3509653]
[1673452900269,36.6678515,1322.8,1322.5,22.3509653]
[1673452901154,34.99815986,1322.8,1322.5,22.3509653]
[1673452901483,36.6678515,1322.8,1322.5,22.3509653]
[1673452901669,1.1134319,1322.7,1322.5,20.07954706]
[1673452901998,2.5,1322.6,1322.5,20.07954706]
[1673452902422,2.5,1322.6,1322.5,24.22803762]
[1673452903042,2.5,1322.6,1322.5,21.95550758]
[1673452907029,25.5815119,1322.7,1322.5,21.95550758]
[1673452907358,7.56086,1322.6,1322.5,20.07954706]
[1673452907571,7.62686,1322.6,1322.5,20.07954706]
[1673452907730,10.12686,1322.6,1322.5,20.07954706]
[1673452908304,7.62686,1322.6,1322.5,20.07954706]
[1673452908465,7.62686,1322.6,1322.5,21.95551595]
[1673452908990,0.066,1322.6,1322.5,21.95551595]
[1673452909241,29.79799207,1322.7,1322.5,21.95551595]
[1673452909452,29.79799207,1322.7,1322.5,20.07954706]
[1673452910143,28.68456017,1322.7,1322.5,20.07954706]
[1673452910353,1.786,1322.7,1322.5,20.07954706]
[1673452910688,9.28042,1322.7,1322.5,20.07954706]
[1673452910900,9.34642,1322.7,1322.5,20.07954706]
[1673452911505,18.0202719,1322.7,1322.5,20.07954706]
[1673452912515,25.5806919,1322.7,1322.5,20.07954706]
[1673452912667,30.3565297,1322.7,1322.5,20.07954706]
[1673452913035,30.3565297,1322.7,1322.5,20.07648059]
[1673452913763,21.6826778,1322.7,1322.5,20.07648059]
[1673452914087,6.5618378,1322.7,1322.5,27.63790059]
[1673452914297,9.34634,1322.7,1322.5,20.07648059]
[1673452914752,16.90668,1322.7,1322.5,20.07648059]
[1673452917644,15.18668,1322.7,1322.5,20.07648059]
[1673452917857,15.18668,1322.7,1322.5,21.2084935]
[1673452917858,0.066,1322.7,1322.5,21.2084935]
[1673452918176,0.066,1322.7,1322.5,22.34901063]
[1673452918177,7.56035,1322.7,1322.5,22.34901063]
[1673452918391,7.62635,1322.7,1322.5,20.07648059]
[1673452918603,15.1867,1322.7,1322.5,20.07648059]
[1673452919260,15.1867,1322.7,1322.5,21.2084935]
[1673452919797,0.066,1322.7,1322.6,6.80547038]
[1673452919950,0.066,1322.7,1322.6,24.20172042]
[1673452919951,0.064,1322.7,1322.6,24.20172042]
[1673452920169,31.2498319,1322.9,1322.6,24.20172042]
[1673452920170,31.3138319,1322.9,1322.6,19.20486042]
[1673452920404,30.2004,1322.9,1322.7,1.87579683]
[1673452920620,31.3138319,1322.9,1322.7,1.87579683]
[1673452920907,56.19483065,1322.9,1322.7,19.99458099]
[1673452921152,53.9913219,1322.9,1322.7,20.06058099]
[1673452924297,35.1843,1322.9,1322.7,20.06058099]
[1673452924516,35.1843,1322.9,1322.7,22.44847998]
[1673452924517,22.74349,1322.9,1322.7,22.44847998]
[1673452924730,15.1843,1322.9,1322.7,22.44847998]
[1673452924941,0.066,1322.9,1322.7,30.00867998]
[1673452925120,10.40652451,1323.0,1322.7,38.70098289]
[1673452925121,1.19379451,1323.0,1322.7,38.70098289]
[1673452925335,8.68647451,1323.0,1322.8,1.8755412]
[1673452925564,8.68647451,1323.0,1322.7,31.14069289]
[1673452925565,7.63904261,1323.0,1322.7,40.39864265]
[1673452925768,0.066,1323.0,1322.9,3.79766064]
[1673452925989,0.04014384,1323.1,1322.9,13.23219899]
[1673452925990,20.04014384,1323.1,1322.9,13.23219899]
[1673452926170,20.10614384,1323.1,1323.0,3.79766064]
[1673452927788,20.10414384,1323.1,1323.0,3.79766064]
[1673452927967,0.10614384,1323.1,1323.0,3.79766064]
[1673452928307,0.04014384,1323.1,1323.0,3.79766064]
[1673452928734,0.04014384,1323.1,1322.9,35.18428]
[1673452928919,0.04014384,1323.1,1322.9,31.42279064]
[1673452929131,0.04014384,1323.1,1323.0,35.11172099]
[1673452929326,0.04014384,1323.1,1323.0,35.17772099]
[1673452929731,0.04014384,1323.1,1323.0,42.73629099]
[1673452931445,0.04014384,1323.1,1323.0,35.17772099]
[1673452931635,0.04014384,1323.1,1323.0,20.06058099]
[1673452931867,0.04014384,1323.1,1323.0,27.61915099]
[1673452932081,0.04014384,1323.1,1323.0,42.73629099]
[1673452932308,0.04014384,1323.1,1323.0,35.17772099]
[1673452932834,0.04014384,1323.1,1323.0,42.73629099]
[1673452933024,0.04014384,1323.1,1323.0,46.53395163]
[1673452933752,0.04014384,1323.1,1323.0,46.53159488]
[1673452937198,0.04014384,1323.1,1323.0,49.53159488]
[1673452939240,3.84e-06,1323.1,1323.0,56.27394264]
[1673452939394,0.0501152,1323.2,1323.0,62.97390333]
[1673452939710,0.0501152,1323.2,1323.1,34.45084522]
[1673452939921,0.0501152,1323.2,1323.1,39.37889298]
[1673452940360,0.0501152,1323.2,1323.1,34.51684522]
[1673452940587,0.0501152,1323.2,1323.1,34.74684522]
[1673452942178,0.0501152,1323.2,1323.1,39.60889298]
[1673452942343,0.0501152,1323.2,1323.1,41.33689298]
[1673452942683,0.0501152,1323.2,1323.1,36.47484522]
[1673452943632,0.0501152,1323.2,1323.1,39.61689298]
[1673452943870,0.0501152,1323.2,1323.1,34.75484522]
[1673452944198,0.0501152,1323.2,1323.1,39.61689298]
[1673452944514,0.05518308,1323.3,1323.2,2.58863253]
[1673452944671,0.05518308,1323.3,1323.2,50.92063093]
[1673452944887,3.08e-06,1323.3,1323.2,54.95523093]
[1673452945238,0.04820151,1323.4,1323.2,54.95523093]
[1673452945417,0.04820151,1323.4,1323.3,39.31647298]
[1673452945770,1.51e-06,1323.4,1323.3,34.84762522]
[1673452946084,5.26e-06,1323.5,1323.3,34.84762522]
[1673452946085,5.26e-06,1323.5,1323.4,2.5]
[1673452946242,5.26e-06,1323.5,1323.4,28.18053064]
[1673452946448,5.26e-06,1323.5,1323.4,31.47653064]
[1673452947090,5.26e-06,1323.5,1323.4,6.86366064]
[1673452947743,5.26e-06,1323.5,1323.4,29.53253064]
[1673452948181,5.26e-06,1323.5,1323.4,3.066]
[1673452948403,5.26e-06,1323.5,1323.4,10.55629]
[1673452948556,5.26e-06,1323.5,1323.4,29.53253064]
[1673452951982,5.26e-06,1323.5,1323.4,29.76253064]
[1673452953234,5.26e-06,1323.5,1323.4,30.52971522]
[1673452953597,5.26e-06,1323.5,1323.4,32.23771522]
[1673452955073,5.26e-06,1323.5,1323.4,18.91024064]
[1673452955321,5.26e-06,1323.5,1323.4,31.24253064]
[1673452955594,5.26e-06,1323.5,1323.4,31.8748852]
[1673452956905,5.26e-06,1323.5,1323.4,38.69809066]
[1673452957902,5.26e-06,1323.5,1323.4,38.0657361]
[1673452959225,5.26e-06,1323.5,1323.4,39.93995206]
[1673452959376,0.0377004,1323.6,1323.4,40.57230662]
[1673452959586,0.0377004,1323.6,1323.5,33.67482064]
[1673452959798,0.0377004,1323.6,1323.5,33.74082064]
[1673452960258,0.0377004,1323.6,1323.5,53.74082064]
[1673452960428,0.0377004,1323.6,1323.5,52.03082064]
[1673452961069,0.0377004,1323.6,1323.5,49.53082064]
[1673452962116,0.0377004,1323.6,1323.5,49.92692064]
[1673452962355,0.0377004,1323.6,1323.5,49.53082064]
[1673452965691,0.00098903,1323.7,1323.5,54.6340261]
[1673452965903,0.90125946,1323.8,1323.7,30.21832]
[1673452966136,0.90125946,1323.8,1323.7,37.08198064]
[1673452967302,0.90125946,1323.8,1323.7,36.93198064]
[1673452973147,0.90125946,1323.8,1323.7,36.78198064]
[1673452976768,0.90125946,1323.8,1323.7,3.066]
[1673452977012,0.90125946,1323.8,1323.7,3.0]
[1673452977227,0.90125946,1323.8,1323.6,10.24863946]
[1673452977228,18.73364207,1323.8,1323.6,10.24863946]
[1673452977383,6.29898173,1323.8,1323.6,10.24863946]
[1673452978175,2.90432207,1323.8,1323.6,10.24863946]
[1673452978493,2.83832207,1323.8,1323.6,17.80376946]
[1673452980232,2.83832207,1323.8,1323.6,25.35891946]
[1673452980672,2.83832207,1323.8,1323.6,17.80376946]
[1673452980880,2.83832207,1323.8,1323.6,25.35891946]
[1673452981090,1.48232207,1323.8,1323.6,32.91406946]
[1673452981304,1.48232207,1323.8,1323.6,36.7117301]
[1673452981499,1.46795946,1323.8,1323.6,36.7117301]
[1673452981828,1.46795946,1323.8,1323.7,3.79766064]
[1673452982050,0.90125946,1323.8,1323.7,29.46140064]
[1673452982227,0.90125946,1323.8,1323.7,29.52740064]
[1673452983198,0.90125946,1323.8,1323.7,31.40150609]
[1673452984148,0.90125946,1323.8,1323.7,29.52740064]
[1673452984688,0.90125946,1323.8,1323.7,6.86366064]
[1673452984904,0.99719587,1323.8,1323.7,6.86366064]
[1673452985706,0.99719587,1323.8,1323.7,0.066]
[1673452986040,2.92489587,1323.8,1323.6,10.24863946]
[1673452986845,2.92489587,1323.8,1323.6,32.91403946]
[1673452987285,1.56389587,1323.8,1323.6,32.91403946]
[1673452987893,1.46795946,1323.8,1323.7,3.79766064]
[1673452988151,0.90125946,1323.8,1323.7,29.46140064]
[1673452988325,0.90125946,1323.8,1323.7,29.52740064]
[1673452989262,0.90125946,1323.8,1323.7,21.97282064]
[1673452989472,0.90125946,1323.8,1323.7,29.52740064]
[1673452990540,0.90125946,1323.8,1323.7,31.40154642]
[1673452992251,0.90125946,1323.8,1323.7,34.01369107]
[1673452992520,0.90125946,1323.8,1323.7,34.01369324]
[1673452992981,0.90125946,1323.8,1323.7,34.0136441]
[1673452993360,0.90125946,1323.8,1323.7,35.14565701]
[1673452993571,0.90125946,1323.8,1323.7,34.0136441]
[1673452995309,0.90125946,1323.8,1323.7,26.4590641]
[1673452995499,0.90125946,1323.8,1323.7,34.0136441]
[1673452995707,0.90125946,1323.8,1323.7,11.3499041]
[1673452995931,0.90125946,1323.8,1323.7,8.73780642]
[1673452996127,0.90125946,1323.8,1323.7,14.41824064]
[1673452996360,0.90125946,1323.8,1323.7,29.52740064]
[1673452997044,0.90125946,1323.8,1323.7,31.4015897]
[1673452997680,0.90125946,1323.8,1323.7,23.8470097]
[1673452997893,0.99719587,1323.8,1323.7,23.84701456]
[1673452998201,0.99719587,1323.8,1323.7,18.97282064]
[1673452998442,0.90125946,1323.8,1323.7,28.40158815]
[1673452999057,0.90125946,1323.8,1323.7,28.40160113]
[1673453002083,0.90125946,1323.8,1323.7,34.01446331]
[1673453007195,0.89864335,1323.8,1323.7,34.01446331]
[1673453007618,0.89864335,1323.8,1323.7,35.14647622]
[1673453009830,0.89864335,1323.8,1323.7,36.84413598]
[1673453009982,0.89864335,1323.8,1323.7,35.71212307]
[1673453010619,0.89864335,1323.8,1323.7,37.06812307]
[1673453011879,0.89864335,1323.8,1323.7,42.17132853]
[1673453012243,0.89864335,1323.8,1323.7,37.06812307]
[1673453012892,0.89864335,1323.8,1323.7,38.19864937]
[1673453013130,0.89864335,1323.8,1323.7,37.06812307]
[1673453014996,0.89864335,1323.8,1323.7,38.19842914]
[1673453016730,0.89864335,1323.8,1323.7,37.06812307]
[1673453017572,0.05810461,1323.9,1323.8,3.33334066]
[1673453017747,0.05810461,1323.9,1323.8,37.49259764]
[1673453017945,4.61e-06,1323.9,1323.8,54.40331348]
[1673453018171,4.61e-06,1323.9,1323.8,74.40331348]
[1673453018364,4.61e-06,1323.9,1323.8,76.66685982]
[1673453018809,4.61e-06,1323.9,1323.8,74.40331348]
[1673453019037,4.61e-06,1323.9,1323.8,75.53318642]
[1673453019234,4.61e-06,1323.9,1323.8,75.53352797]
[1673453019466,4.61e-06,1323.9,1323.8,76.66685982]
[1673453020051,4.61e-06,1323.9,1323.8,74.40331348]
[1673453020398,4.61e-06,1323.9,1323.8,75.53324106]
[1673453021150,4.61e-06,1323.9,1323.8,73.83802155]
[1673453021305,4.61e-06,1323.9,1323.8,72.47602155]
[1673453024306,4.61e-06,1323.9,1323.8,69.97602155]
[1673453026791,4.61e-06,1323.9,1323.8,55.97602155]
[1673453026992,1.35500461,1323.9,1323.8,44.29208397]
[1673453027357,1.35500461,1323.9,1323.8,47.3590313]
[1673453027747,1.35500461,1323.9,1323.8,39.8050213]
[1673453027966,1.35500461,1323.9,1323.8,47.3590313]
[1673453028172,4.61e-06,1323.9,1323.8,54.90761561]
[1673453030674,4.61e-06,1323.9,1323.8,42.8050213]
[1673453031605,4.61e-06,1323.9,1323.8,50.3590313]
[1673453031949,4.61e-06,1323.9,1323.8,35.2510113]
[1673453032391,4.61e-06,1323.9,1323.8,42.8050213]
[1673453032604,4.61e-06,1323.9,1323.8,50.3590313]
[1673453036511,4.61e-06,1323.9,1323.8,56.03410763]
[1673453041672,4.61e-06,1323.9,1323.8,57.73009682]
[1673453043313,4.61e-06,1323.9,1323.8,57.73059744]
[1673453043851,4.61e-06,1323.9,1323.8,56.59943736]
[1673453044794,4.61e-06,1323.9,1323.8,57.73075698]
[1673453045040,4.61e-06,1323.9,1323.8,56.03476779]
[1673453045626,4.61e-06,1323.9,1323.8,57.73075698]
[1673453047015,4.61e-06,1323.9,1323.8,56.59943736]
[1673453047881,4.61e-06,1323.9,1323.8,58.86075627]
[1673453049512,0.05430022,1324.0,1323.9,2.10949432]
[1673453049727,0.05430022,1324.0,1323.9,37.80940499]
[1673453049932,0.05430022,1324.0,1323.9,37.87540499]
[1673453050191,0.05430022,1324.0,1323.9,39.00707975]
[1673453050417,0.05430022,1324.0,1323.9,49.18962398]
[1673453050601,0.05430022,1324.0,1323.9,48.05804445]
[1673453051191,0.05430022,1324.0,1323.9,49.18962271]
[1673453051457,0.05430022,1324.0,1323.9,48.05804445]
[1673453051978,0.05430022,1324.0,1323.9,49.18959851]
[1673453053199,0.05430022,1324.0,1323.9,50.31936336]
[1673453055766,0.05430022,1324.0,1323.9,48.6218502]
[1673453056561,2.2e-07,1324.0,1323.9,56.53475342]
[1673453056760,2.2e-07,1324.0,1323.9,51.44849884]
[1673453056970,2.2e-07,1324.0,1323.9,52.81549884]
[1673453057234,0.0410878,1324.1,1324.0,24.76660978]
[1673453057407,0.0410878,1324.1,1324.0,37.87089761]
[1673453057830,0.0410878,1324.1,1324.0,51.87089761]
[1673453058049,0.0410878,1324.1,1324.0,54.13221652]
[1673453058257,0.0410878,1324.1,1324.0,51.87089761]
[1673453059644,0.0410878,1324.1,1324.0,54.13221652]
[1673453060353,0.0410878,1324.1,1324.0,54.13090439]
[1673453060549,0.0410878,1324.1,1324.0,52.4360062]
[1673453060753,0.0410878,1324.1,1324.0,57.99406078]
[1673453061006,7.8e-06,1324.1,1324.0,57.99406078]
[1673453061234,7.8e-06,1324.1,1324.0,52.9078062]
[1673453061418,7.8e-06,1324.1,1324.0,58.55939051]
[1673453061632,7.8e-06,1324.1,1324.0,53.47313593]
[1673453062182,7.8e-06,1324.1,1324.0,54.10487465]
[1673453062393,7.8e-06,1324.1,1324.0,56.36310156]
[1673453062541,7.8e-06,1324.1,1324.0,61.44935614]
[1673453062869,9.56e-05,1324.2,1324.0,61.12345896]
[1673453063085,0.066,1324.4,1324.2,2.5]
[1673453063307,31.6382474,1324.5,1324.3,36.824676]
[1673453063308,1.0042474,1324.5,1324.3,36.824676]
[1673453063522,1.0042474,1324.5,1324.4,32.45229192]
[1673453063523,0.9382474,1324.5,1324.4,32.45229192]
[1673453063752,0.9382474,1324.5,1324.4,31.38932578]
[1673453063952,0.9382474,1324.5,1324.4,34.05981751]
[1673453064326,0.9382474,1324.5,1324.4,14.41424064]
[1673453064537,4.1351952,1324.5,1324.4,14.41424064]
[1673453064996,4.1351952,1324.5,1324.4,21.96482064]
[1673453065392,4.1351952,1324.5,1324.4,3.066]
[1673453065393,5.51655781,1324.5,1324.4,3.066]
[1673453065601,5.58255781,1324.5,1324.3,3.066]
[1673453065849,1.361,1324.4,1324.2,0.066]
[1673453066057,4.41865578,1324.4,1324.2,3.79766064]
[1673453066435,4.98505578,1324.4,1324.1,7.61982]
[1673453066636,4.98505578,1324.4,1324.1,11.41748064]
[1673453067280,4.98505578,1324.4,1324.2,3.0]
[1673453067489,4.99941839,1324.4,1324.2,3.0]
[1673453067731,12.55003839,1324.4,1324.2,3.0]
[1673453067949,12.61603839,1324.4,1324.2,3.0]
[1673453068339,12.61607839,1324.4,1324.2,3.0]
[1673453068762,5.06541839,1324.4,1324.2,3.0]
[1673453069848,5.06541839,1324.4,1324.2,10.55161]
[1673453070004,5.06541839,1324.4,1324.2,3.066]
[1673453070214,5.06541839,1324.4,1324.2,3.0]